fUST/lending_fUST_20251216
["ID","MTS","AMOUNT","RATE_DAILY","PERIOD"]
[398582013,1765855840114,-555.30493878,0.00010958,2]
[398582014,1765855840123,-500.0,0.00010958,2]
[398582015,1765855840133,-500.0,0.00010958,2]
[398582016,1765855840142,-500.0,0.00010958,2]
[398582017,1765855840151,-500.0,0.00010958,2]
[398582018,1765855840161,-500.0,0.00010958,2]
[398582019,1765855840170,-500.0,0.00010958,2]
[398582020,1765855840179,-500.0,0.00010958,2]
[398582021,1765855840188,-974.78,0.00010958,2]
[398582022,1765855840197,-500.0,0.00010958,2]
[398582023,1765855840207,-500.0,0.00010958,2]
[398582024,1765855840216,-500.0,0.00010958,2]
[398582025,1765855840225,-560.43,0.00010958,2]
[398582026,1765855840235,-1297.79,0.00010958,2]
[398582027,1765855840245,-500.0,0.00010958,2]
[398582028,1765855840255,-500.0,0.00010958,2]
[398582029,1765855840264,-500.0,0.00010958,2]
[398582030,1765855840273,-500.0,0.00010958,2]
[398582031,1765855840282,-506.0,0.00010958,2]
[398582032,1765855840293,-382.11696856,0.00010958,2]
[398582033,1765855840302,-500.0,0.00010958,2]
[398582035,1765855840312,-500.0,0.00010958,2]
[398582037,1765855840322,-500.0,0.00010958,2]
[398582038,1765855840331,-500.0,0.00010958,2]
[398582039,1765855840340,-703.47,0.00010958,2]
[398582040,1765855840350,-500.0,0.00010958,2]
[398582041,1765855840358,-500.0,0.00010958,2]
[398582042,1765855840369,-12075.4427364,0.00010958,2]
[398582043,1765855840378,-500.0,0.00010958,2]
[398582044,1765855840387,-500.0,0.00010958,2]
[398582045,1765855840396,-1215.0,0.00010958,2]
[398582046,1765855840404,-500.0,0.00010958,2]
[398582047,1765855840413,-500.0,0.00010958,2]
[398582048,1765855840422,-237.4139689,0.00010958,2]
[398582049,1765855840436,-500.0,0.00010958,2]
[398582050,1765855840445,-546.23,0.00010958,2]
[398582051,1765855840455,-500.0,0.00010958,2]
[398582052,1765855840464,-584.65,0.00010958,2]
[398582053,1765855840473,-500.0,0.00010958,2]
[398582054,1765855840482,-526.62922012,0.00010958,2]
[398582055,1765855840492,-652.55,0.00010958,2]
[398582056,1765855840501,-500.0,0.00010958,2]
[398582057,1765855840511,-500.0,0.00010958,2]
[398582058,1765855840520,-7291.66,0.00010958,2]
[398582059,1765855840530,-500.0,0.00010958,2]
[398582060,1765855840541,-500.0,0.00010958,2]
[398582061,1765855840559,-1200.51,0.00010958,2]
[398582062,1765855840569,-500.0,0.00010958,2]
[398582063,1765855840578,-500.0,0.00010958,2]
[398582064,1765855840588,-500.0,0.00010958,2]
[398582065,1765855840597,-500.0,0.00010958,2]
[398582066,1765855840607,-2115.6784793,0.00010958,2]
[398582067,1765855840618,-500.0,0.00010958,2]
[398582068,1765855840628,-2406.78,0.00010958,2]
[398582069,1765855840638,-3305.74762391,0.00010958,2]
[398582070,1765855840648,-655.13,0.00010958,2]
[398582071,1765855840657,-558.54,0.00010958,2]
[398582072,1765855840667,-4755.51630185,0.00010958,2]
[398582073,1765855840676,-500.0,0.00010958,2]
[398582074,1765855840687,-500.0,0.00010958,2]
[398582075,1765855840697,-500.0,0.00010958,2]
[398582076,1765855840706,-1778.5,0.00010958,2]
[398582077,1765855840716,-500.0,0.00010958,2]
[398582078,1765855840726,-210.304229,0.00010958,2]
[398582079,1765855840735,-500.0,0.00010958,2]
[398582080,1765855840746,-846.79,0.00010958,2]
[398582081,1765855840756,-897.73,0.00010958,2]
[398582082,1765855840770,-500.0,0.00010958,2]
[398582083,1765855840779,-500.0,0.00010958,2]
[398582084,1765855840789,-500.0,0.00010958,2]
[398582085,1765855840800,-500.0,0.00010958,2]
[398582086,1765855840810,-229.35,0.00010958,2]
[398582087,1765855840820,-500.0,0.00010958,2]
[398582088,1765855840829,-500.0,0.00010958,2]
[398582089,1765855840842,-500.0,0.00010958,2]
[398582090,1765855840851,-500.0,0.00010958,2]
[398582091,1765855840861,-1847.98,0.00010958,2]
[398582092,1765855840870,-1173.34,0.00010958,2]
[398582093,1765855840879,-1699.78,0.00010958,2]
[398582094,1765855840889,-1497.64,0.00010958,2]
[398582095,1765855840898,-500.0,0.00010958,2]
[398582096,1765855840908,-500.0,0.00010958,2]
[398582097,1765855840917,-500.0,0.00010958,2]
[398582098,1765855840926,-500.0,0.00010958,2]
[398582099,1765855840935,-2738.28,0.00010958,2]
[398582100,1765855840944,-500.0,0.00010958,2]
[398582101,1765855840954,-500.0,0.00010958,2]
[398582102,1765855840963,-500.0,0.00010958,2]
[398582103,1765855840972,-1903.79,0.00010958,2]
[398582104,1765855840981,-500.0,0.00010958,2]
[398582105,1765855840990,-500.0,0.00010958,2]
[398582106,1765855841000,-500.0,0.00010958,2]
[398582107,1765855841010,-2270.29,0.00010958,2]
[398582108,1765855841019,-500.0,0.00010958,2]
[398582109,1765855841029,-516.14,0.00010958,2]
[398582110,1765855841039,-500.0,0.00010958,2]
[398582111,1765855841048,-806.22,0.00010958,2]
[398582112,1765855841057,-500.0,0.00010958,2]
[398582113,1765855841067,-500.0,0.00010958,2]
[398582114,1765855841076,-500.0,0.00010958,2]
[398582115,1765855841086,-500.0,0.00010958,2]
[398582116,1765855841095,-500.0,0.00010958,2]
[398582117,1765855841105,-500.0,0.00010958,2]
[398582118,1765855841115,-500.0,0.00010958,2]
[398582119,1765855841124,-798.21,0.00010958,2]
[398582120,1765855841134,-500.0,0.00010958,2]
[398582121,1765855841143,-500.0,0.00010958,2]
[398582122,1765855841153,-500.0,0.00010958,2]
[398582123,1765855841162,-1508.28,0.00010958,2]
[398582124,1765855841171,-671.59,0.00010958,2]
[398582125,1765855841180,-500.0,0.00010958,2]
[398582126,1765855841189,-830.08,0.00010958,2]
[398582127,1765855841199,-643.53,0.00010958,2]
[398582128,1765855841208,-744.19,0.00010958,2]
[398582129,1765855841218,-500.0,0.00010958,2]
[398582130,1765855841227,-500.0,0.00010958,2]
[398582131,1765855841236,-500.0,0.00010958,2]
[398582132,1765855841246,-500.0,0.00010958,2]
[398582133,1765855841256,-500.0,0.00010958,2]
[398582134,1765855841265,-500.0,0.00010958,2]
[398582135,1765855841274,-500.0,0.00010958,2]
[398582136,1765855841284,-500.0,0.00010958,2]
[398582137,1765855841293,-500.0,0.00010958,2]
[398582138,1765855841302,-500.0,0.00010958,2]
[398582139,1765855841311,-500.0,0.00010958,2]
[398582140,1765855841321,-500.0,0.00010958,2]
[398582141,1765855841330,-1292.92,0.00010958,2]
[398582142,1765855841340,-1878.17,0.00010958,2]
[398582143,1765855841349,-500.0,0.00010958,2]
[398582144,1765855841359,-867.54,0.00010958,2]
[398582145,1765855841368,-1115.92,0.00010958,2]
[398582146,1765855841377,-500.0,0.00010958,2]
[398582147,1765855841387,-500.0,0.00010958,2]
[398582148,1765855841399,-500.0,0.00010958,2]
[398582149,1765855841409,-510.13,0.00010958,2]
[398582150,1765855841418,-500.0,0.00010958,2]
[398582151,1765855841428,-500.0,0.00010958,2]
[398582152,1765855841438,-500.0,0.00010958,2]
[398582153,1765855841447,-1021.87,0.00010958,2]
[398582154,1765855841458,-504.78873516,0.00010958,2]
[398582155,1765855841467,-921.08,0.00010958,2]
[398582156,1765855841476,-500.0,0.00010958,2]
[398582157,1765855841485,-500.0,0.00010958,2]
[398582158,1765855841494,-500.0,0.00010958,2]
[398582159,1765855841503,-500.0,0.00010958,2]
[398582160,1765855841513,-500.0,0.00010958,2]
[398582161,1765855841522,-500.0,0.00010958,2]
[398582162,1765855841531,-500.0,0.00010958,2]
[398582163,1765855841541,-500.0,0.00010958,2]
[398582164,1765855841553,-500.0,0.00010958,2]
[398582165,1765855841566,-500.0,0.00010958,2]
[398582166,1765855841575,-500.0,0.00010958,2]
[398582167,1765855841584,-500.0,0.00010958,2]
[398582168,1765855841594,-1931.87,0.00010958,2]
[398582169,1765855841603,-1337.14,0.00010958,2]
[398582170,1765855841612,-169.06159456,0.00010958,2]
[398582171,1765855841621,-500.0,0.00010958,2]
[398582172,1765855841631,-348.62791574,0.00010958,2]
[398582173,1765855841640,-500.85,0.00010958,2]
[398582174,1765855841651,-1323.31,0.00010958,2]
[398582175,1765855841660,-500.0,0.00010958,2]
[398582176,1765855841670,-500.0,0.00010958,2]
[398582177,1765855841679,-948.83,0.00010958,2]
[398582178,1765855841688,-500.0,0.00010958,2]
[398582179,1765855841697,-897.58,0.00010958,2]
[398582180,1765855841706,-522.01,0.00010958,2]
[398582181,1765855841716,-500.0,0.00010958,2]
[398582182,1765855841725,-500.0,0.00010958,2]
[398582183,1765855841734,-500.0,0.00010958,2]
[398582184,1765855841743,-875.26958211,0.00010958,2]
[398582185,1765855841753,-500.0,0.00010958,2]
[398582186,1765855841763,-500.0,0.00010958,2]
[398582187,1765855841774,-500.0,0.00010958,2]
[398582188,1765855841783,-1554.47877782,0.00010958,2]
[398582189,1765855841793,-500.0,0.00010958,2]
[398582190,1765855841803,-500.0,0.00010958,2]
[398582191,1765855841813,-868.7,0.00010958,2]
[398582192,1765855841823,-785.35,0.00010958,2]
[398582193,1765855841833,-500.0,0.00010958,2]
[398582194,1765855841843,-500.0,0.00010958,2]
[398582195,1765855841852,-500.0,0.00010958,2]
[398582196,1765855841862,-500.0,0.00010958,2]
[398582197,1765855841871,-500.0,0.00010958,2]
[398582198,1765855841880,-2224.31,0.00010958,2]
[398582199,1765855841888,-636.32,0.00010958,2]
[398582200,1765855841898,-988.12,0.00010958,2]
[398582201,1765855841907,-500.0,0.00010958,2]
[398582202,1765855841917,-500.0,0.00010958,2]
[398582203,1765855841926,-500.0,0.00010958,2]
[398582204,1765855841935,-662.88,0.00010958,2]
[398582205,1765855841944,-500.0,0.00010958,2]
[398582206,1765855841953,-1012.31,0.00010958,2]
[398582207,1765855841963,-500.0,0.00010958,2]
[398582208,1765855841972,-500.0,0.00010958,2]
[398582209,1765855841981,-627.05,0.00010958,2]
[398582210,1765855841990,-500.0,0.00010958,2]
[398582211,1765855841999,-500.0,0.00010958,2]
[398582212,1765855842009,-1919.17,0.00010958,2]
[398582213,1765855842018,-515.2,0.00010958,2]
[398582214,1765855842028,-500.0,0.00010958,2]
[398582215,1765855842037,-500.0,0.00010958,2]
[398582216,1765855842046,-1776.49,0.00010958,2]
[398582217,1765855842056,-500.0,0.00010958,2]
[398582218,1765855842065,-793.89,0.00010958,2]
[398582219,1765855842075,-500.0,0.00010958,2]
[398582220,1765855842084,-1157.73,0.00010958,2]
[398582221,1765855842093,-500.0,0.00010958,2]
[398582222,1765855842103,-500.0,0.00010958,2]
[398582223,1765855842112,-500.0,0.00010958,2]
[398582224,1765855842122,-500.0,0.00010958,2]
[398582225,1765855842131,-500.0,0.00010958,2]
[398582226,1765855842140,-500.0,0.00010958,2]
[398582227,1765855842149,-579.59,0.00010958,2]
[398582228,1765855842158,-500.0,0.00010958,2]
[398582229,1765855842167,-500.0,0.00010958,2]
[398582230,1765855842176,-500.0,0.00010958,2]
[398582231,1765855842186,-500.0,0.00010958,2]
[398582232,1765855842195,-500.0,0.00010958,2]
[398582233,1765855842204,-500.0,0.00010958,2]
[398582234,1765855842213,-737.38,0.00010958,2]
[398582235,1765855842222,-500.0,0.00010958,2]
[398582236,1765855842231,-500.0,0.00010958,2]
[398582237,1765855842240,-500.0,0.00010958,2]
[398582238,1765855842249,-969.46,0.00010958,2]
[398582239,1765855842258,-925.03,0.00010958,2]
[398582240,1765855842268,-1193.77,0.00010958,2]
[398582241,1765855842277,-500.0,0.00010958,2]
[398582242,1765855842286,-500.0,0.00010958,2]
[398582243,1765855842295,-500.0,0.00010958,2]
[398582244,1765855842304,-500.0,0.00010958,2]
[398582245,1765855842314,-3719.56,0.00010958,2]
[398582246,1765855842323,-500.0,0.00010958,2]
[398582247,1765855842332,-500.0,0.00010958,2]
[398582248,1765855842341,-962.41,0.00010958,2]
[398582249,1765855842550,-5063.45,0.00010958,2]
[398582250,1765855842560,-507.19,0.00010958,2]
[398582251,1765855842569,-944.44,0.00010958,2]
[398582252,1765855842578,-500.0,0.00010958,2]
[398582253,1765855842587,-500.0,0.00010958,2]
[398582254,1765855842596,-500.0,0.00010958,2]
[398582255,1765855842606,-500.0,0.00010958,2]
[398582256,1765855842616,-742.11,0.00010958,2]
[398582257,1765855842626,-844.0,0.00010958,2]
[398582258,1765855842635,-500.0,0.00010958,2]
[398582259,1765855842645,-500.0,0.00010958,2]
[398582260,1765855842654,-2597.84,0.00010958,2]
[398582261,1765855842664,-961.17,0.00010958,2]
[398582262,1765855842672,-500.0,0.00010958,2]
[398582263,1765855842682,-500.0,0.00010958,2]
[398582264,1765855842691,-500.0,0.00010958,2]
[398582265,1765855842699,-500.0,0.00010958,2]
[398582266,1765855842709,-500.0,0.00010958,2]
[398582267,1765855842718,-886.27,0.00010958,2]
[398582268,1765855842727,-500.0,0.00010958,2]
[398582269,1765855842736,-500.0,0.00010958,2]
[398582270,1765855842745,-500.0,0.00010958,2]
[398582271,1765855842755,-500.0,0.00010958,2]
[398582272,1765855842768,-578.14,0.00010958,2]
[398582273,1765855842777,-500.0,0.00010958,2]
[398582274,1765855842787,-500.0,0.00010958,2]
[398582275,1765855842795,-652.91,0.00010958,2]
[398582276,1765855842805,-500.0,0.00010958,2]
[398582277,1765855842814,-500.0,0.00010958,2]
[398582278,1765855842824,-644.85224326,0.00010958,2]
[398582279,1765855842833,-500.0,0.00010958,2]
[398582280,1765855842843,-1000.0,0.00010958,2]
[398582281,1765855842853,-500.0,0.00010958,2]
[398582282,1765855842862,-1501.32,0.00010958,2]
[398582283,1765855842871,-500.0,0.00010958,2]
[398582284,1765855842881,-500.0,0.00010958,2]
[398582285,1765855842890,-500.0,0.00010958,2]
[398582286,1765855842899,-1388.81,0.00010958,2]
[398582287,1765855842908,-500.0,0.00010958,2]
[398582288,1765855842917,-500.0,0.00010958,2]
[398582289,1765855842926,-2877.18,0.00010958,2]
[398582290,1765855842935,-500.0,0.00010958,2]
[398582291,1765855842945,-648.25,0.00010958,2]
[398582292,1765855842954,-522.59,0.00010958,2]
[398582293,1765855842963,-500.0,0.00010958,2]
[398582294,1765855842973,-905.36,0.00010958,2]
[398582295,1765855842982,-500.0,0.00010958,2]
[398582296,1765855842991,-500.0,0.00010958,2]
[398582297,1765855843001,-500.0,0.00010958,2]
[398582298,1765855843010,-550.04,0.00010958,2]
[398582299,1765855843020,-500.0,0.00010958,2]
[398582300,1765855843029,-500.0,0.00010958,2]
[398582301,1765855843039,-1986.69,0.00010958,2]
[398582302,1765855843048,-500.0,0.00010958,2]
[398582303,1765855843057,-1263.43,0.00010958,2]
[398582304,1765855843067,-377.66262956,0.00010958,2]
[398582305,1765855843076,-565.41,0.00010958,2]
[398582306,1765855843085,-500.0,0.00010958,2]
[398582307,1765855843095,-917.99,0.00010958,2]
[398582309,1765855843104,-500.0,0.00010958,2]
[398582311,1765855843114,-500.0,0.00010958,2]
[398582312,1765855843123,-500.0,0.00010958,2]
[398582313,1765855843132,-516.89,0.00010958,2]
[398582314,1765855843142,-179.86967736,0.00010958,2]
[398582315,1765855843151,-500.0,0.00010958,2]
[398582316,1765855843161,-760.32,0.00010958,2]
[398582317,1765855843170,-755.97,0.00010958,2]
[398582318,1765855843179,-822.67,0.00010958,2]
[398582319,1765855843188,-500.0,0.00010958,2]
[398582320,1765855843198,-606.37268659,0.00010958,2]
[398582321,1765855843207,-500.0,0.00010958,2]
[398582322,1765855843216,-500.0,0.00010958,2]
[398582323,1765855843225,-500.0,0.00010958,2]
[398582324,1765855843235,-686.8,0.00010958,2]
[398582325,1765855843244,-1965.47,0.00010958,2]
[398582326,1765855843254,-500.0,0.00010958,2]
[398582327,1765855843263,-500.0,0.00010958,2]
[398582328,1765855843272,-500.0,0.00010958,2]
[398582329,1765855843282,-500.0,0.00010958,2]
[398582330,1765855843292,-500.0,0.00010958,2]
[398582331,1765855843301,-1736.73,0.00010958,2]
[398582332,1765855843310,-500.0,0.00010958,2]
[398582333,1765855843319,-536.35,0.00010958,2]
[398582334,1765855843329,-1214.18,0.00010958,2]
[398582335,1765855843339,-500.0,0.00010958,2]
[398582336,1765855843348,-936.26,0.00010958,2]
[398582337,1765855843358,-500.0,0.00010958,2]
[398582338,1765855843367,-1867.02,0.00010958,2]
[398582339,1765855843376,-500.0,0.00010958,2]
[398582340,1765855843386,-602.2,0.00010958,2]
[398582341,1765855843395,-911.55,0.00010958,2]
[398582342,1765855843404,-563.5,0.00010958,2]
[398582343,1765855843413,-500.0,0.00010958,2]
[398582344,1765855843423,-500.0,0.00010958,2]
[398582345,1765855843433,-500.0,0.00010958,2]
[398582346,1765855843442,-500.0,0.00010958,2]
[398582347,1765855843452,-500.0,0.00010958,2]
[398582348,1765855843461,-500.0,0.00010958,2]
[398582349,1765855843470,-500.0,0.00010958,2]
[398582350,1765855843480,-1248.23,0.00010958,2]
[398582351,1765855843488,-500.0,0.00010958,2]
[398582352,1765855843498,-500.0,0.00010958,2]
[398582353,1765855843507,-500.0,0.00010958,2]
[398582354,1765855843516,-87.07655736,0.00010958,2]
[398582355,1765855843551,-564.00344264,0.00010958,2]
[398582356,1765855843560,-998.78,0.00010958,2]
[398582357,1765855843570,-1216.49,0.00010958,2]
[398582358,1765855843579,-500.0,0.00010958,2]
[398582359,1765855843588,-500.0,0.00010958,2]
[398582360,1765855843598,-500.0,0.00010958,2]
[398582361,1765855843607,-508.57,0.00010958,2]
[398582362,1765855843617,-500.0,0.00010958,2]
[398582363,1765855843626,-500.0,0.00010958,2]
[398582364,1765855843635,-500.0,0.00010958,2]
[398582365,1765855843644,-401.35920695,0.00010958,2]
[398582366,1765855843656,-98.64079305,0.00010958,2]
[398582367,1765855843665,-500.0,0.00010958,2]
[398582368,1765855843674,-500.0,0.00010958,2]
[398582369,1765855843683,-315.39580837,0.00010958,2]
[398582370,1765855844790,-288.81419163,0.00010958,2]
[398582371,1765855844800,-816.32,0.00010958,2]
[398582372,1765855844811,-500.0,0.00010958,2]
[398582373,1765855844820,-500.0,0.00010958,2]
[398582374,1765855844830,-90.5493301,0.00010958,2]
[398582375,1765855844842,-61.4506699,0.00010958,2]
[398582376,1765855844851,-152.0,0.00010958,2]
[398582377,1765855844860,-162.0,0.00010958,2]
[398582378,1765855844869,-334.0,0.00010958,2]
[398582379,1765855844878,-18.7793301,0.00010958,2]
[398582380,1765855844889,-481.2206699,0.00010958,2]
[398582381,1765855844898,-500.0,0.00010958,2]
[398582382,1765855844907,-500.0,0.00010958,2]
[398582383,1765855844916,-500.0,0.00010958,2]
[398582384,1765855844925,-152.0,0.00010958,2]
[398582385,1765855844934,-1817.56,0.00010958,2]
[398582386,1765855844944,-152.0,0.00010958,2]
[398582387,1765855844953,-980.75,0.00010958,2]
[398582388,1765855844962,-500.0,0.00010958,2]
[398582389,1765855844971,-152.0,0.00010958,2]
[398582390,1765855844980,-162.0,0.00010958,2]
[398582391,1765855844990,-334.0,0.00010958,2]
[398582392,1765855844999,-152.0,0.00010958,2]
[398582393,1765855845008,-152.0,0.00010958,2]
[398582394,1765855845016,-334.0,0.00010958,2]
[398582395,1765855845025,-152.0,0.00010958,2]
[398582396,1765855845034,-334.0,0.00010958,2]
[398582397,1765855845044,-293.11097352,0.00010958,2]
[398582398,1765855845053,-334.0,0.00010958,2]
[398582399,1765855845062,-500.0,0.00010958,2]
[398582400,1765855845071,-334.0,0.00010958,2]
[398582401,1765855845081,-334.0,0.00010958,2]
[398582402,1765855845090,-334.0,0.00010958,2]
[398582403,1765855845099,-334.0,0.00010958,2]
[398582404,1765855845109,-334.0,0.00010958,2]
[398582405,1765855845118,-500.0,0.00010958,2]
[398582406,1765855845127,-334.0,0.00010958,2]
[398582407,1765855845136,-334.0,0.00010958,2]
[398582408,1765855845146,-334.0,0.00010958,2]
[398582409,1765855845155,-1466.04,0.00010958,2]
[398582410,1765855845165,-500.0,0.00010958,2]
[398582411,1765855845173,-500.0,0.00010958,2]
[398582412,1765855845182,-500.0,0.00010958,2]
[398582413,1765855845191,-334.0,0.00010958,2]
[398582414,1765855845200,-4403.64,0.00010958,2]
[398582415,1765855845209,-334.0,0.00010958,2]
[398582416,1765855845218,-334.0,0.00010958,2]
[398582417,1765855845226,-334.0,0.00010958,2]
[398582418,1765855845235,-334.0,0.00010958,2]
[398582419,1765855845245,-334.0,0.00010958,2]
[398582420,1765855845254,-334.0,0.00010958,2]
[398582421,1765855845263,-334.0,0.00010958,2]
[398582422,1765855845272,-334.0,0.00010958,2]
[398582423,1765855845281,-334.0,0.00010958,2]
[398582424,1765855845290,-476.38566433,0.00010958,2]
[398582425,1765855845303,-23.61433567,0.00010958,2]
[398582426,1765855845312,-1759.9933689,0.00010958,2]
[398582427,1765855845503,-334.0,0.00010958,2]
[398582428,1765855845513,-1419.36,0.00010958,2]
[398582429,1765855845522,-334.0,0.00010958,2]
[398582430,1765855845531,-334.0,0.00010958,2]
[398582431,1765855845540,-500.0,0.00010958,2]
[398582432,1765855845550,-334.0,0.00010958,2]
[398582433,1765855845559,-500.0,0.00010958,2]
[398582434,1765855845568,-334.0,0.00010958,2]
[398582435,1765855845580,-953.94,0.00010958,2]
[398582436,1765855845589,-247.13210673,0.00010958,2]
[398582437,1765855845599,-500.0,0.00010958,2]
[398582438,1765855845608,-628.1,0.00010958,2]
[398582439,1765855845617,-500.0,0.00010958,2]
[398582440,1765855845626,-500.0,0.00010958,2]
[398582441,1765855845635,-500.0,0.00010958,2]
[398582442,1765855845645,-540.82954014,0.00010958,2]
[398582443,1765855845654,-1872.69,0.00010958,2]
[398582444,1765855845664,-500.0,0.00010958,2]
[398582445,1765855845673,-760.32,0.00010958,2]
[398582446,1765855845683,-500.0,0.00010958,2]
[398582447,1765855845692,-188.08535562,0.00010958,2]
[398582448,1765855845701,-2573.04662629,0.00010958,2]
[398582449,1765855845752,-5449.78337371,0.00010958,2]
[398582450,1765855845762,-500.0,0.00010958,2]
[398582451,1765855845776,-500.0,0.00010958,2]
[398582452,1765855845785,-2470.34,0.00010958,2]
[398582454,1765855845794,-500.0,0.00010958,2]
[398582456,1765855845803,-500.0,0.00010958,2]
[398582458,1765855845813,-1388.67,0.00010958,2]
[398582460,1765855845822,-1627.47,0.00010958,2]
[398582461,1765855845831,-500.0,0.00010958,2]
[398582462,1765855845840,-500.0,0.00010958,2]
[398582463,1765855845849,-889.98,0.00010958,2]
[398582464,1765855845858,-941.11,0.00010958,2]
[398582465,1765855845868,-640.09,0.00010958,2]
[398582466,1765855845877,-500.0,0.00010958,2]
[398582467,1765855845887,-955.55,0.00010958,2]
[398582468,1765855845897,-500.0,0.00010958,2]
[398582469,1765855845905,-500.0,0.00010958,2]
[398582470,1765855845914,-605.17,0.00010958,2]
[398582471,1765855845923,-1465.63,0.00010958,2]
[398582472,1765855845932,-500.0,0.00010958,2]
[398582474,1765855845942,-1634.88,0.00010958,2]
[398582475,1765855845952,-1548.29,0.00010958,2]
[398582476,1765855845961,-1039.76,0.00010958,2]
[398582477,1765855845970,-500.0,0.00010958,2]
[398582478,1765855845979,-500.0,0.00010958,2]
[398582479,1765855845988,-2038.13,0.00010958,2]
[398582480,1765855845998,-500.0,0.00010958,2]
[398582481,1765855846007,-971.25,0.00010958,2]
[398582482,1765855846016,-8742.2,0.00010958,2]
[398582483,1765855846025,-1796.76,0.00010958,2]
[398582484,1765855846034,-500.0,0.00010958,2]
[398582485,1765855846043,-7074.76,0.00010958,2]
[398582486,1765855846051,-500.0,0.00010958,2]
[398582487,1765855846061,-500.0,0.00010958,2]
[398582488,1765855846070,-522.93,0.00010958,2]
[398582489,1765855846079,-550.9,0.00010958,2]
[398582490,1765855846088,-500.0,0.00010958,2]
[398582491,1765855846097,-500.0,0.00010958,2]
[398582492,1765855846106,-605.48,0.00010958,2]
[398582493,1765855846115,-835.83,0.00010958,2]
[398582494,1765855846125,-899.62,0.00010958,2]
[398582495,1765855846134,-1413.18,0.00010958,2]
[398582496,1765855846143,-1926.36,0.00010958,2]
[398582497,1765855846151,-1480.55,0.00010958,2]
[398582498,1765855846160,-4428.05,0.00010958,2]
[398582499,1765855846168,-1697.9,0.00010958,2]
[398582500,1765855846177,-998.71,0.00010958,2]
[398582501,1765855846186,-500.0,0.00010958,2]
[398582502,1765855846195,-519.48,0.00010958,2]
[398582503,1765855846203,-2217.81,0.00010958,2]
[398582504,1765855846212,-500.0,0.00010958,2]
[398582505,1765855846221,-500.0,0.00010958,2]
[398582506,1765855846230,-500.0,0.00010958,2]
[398582507,1765855846238,-861.39,0.00010958,2]
[398582508,1765855846247,-900.59,0.00010958,2]
[398582509,1765855846256,-500.0,0.00010958,2]
[398582510,1765855846264,-482.76960809,0.00010958,2]
[398582511,1765855846273,-2651.98,0.00010958,2]
[398582512,1765855846282,-3500.75,0.00010958,2]
[398582513,1765855846290,-834.36,0.00010958,2]
[398582514,1765855846299,-681.01,0.00010958,2]
[398582515,1765855846307,-2345.24,0.00010958,2]
[398582516,1765855846316,-500.0,0.00010958,2]
[398582517,1765855846324,-2262.91,0.00010958,2]
[398582518,1765855846333,-500.0,0.00010958,2]
[398582519,1765855846342,-500.0,0.00010958,2]
[398582520,1765855846350,-500.0,0.00010958,2]
[398582521,1765855846359,-500.0,0.00010958,2]